fUSD/lending_fUSD_20260130
["ID","MTS","AMOUNT","RATE_DAILY","PERIOD"]
[404083287,1769797846359,-500.0,0.00017972,2]
[404083288,1769797846369,-500.0,0.00017972,2]
[404083289,1769797846380,-500.0,0.00017972,2]
[404083290,1769797846390,-500.0,0.00017972,2]
[404083291,1769797846401,-500.0,0.00017972,2]
[404083292,1769797846411,-500.0,0.00017973,2]
[404083293,1769797846421,-500.0,0.00017973,2]
[404083294,1769797846431,-500.0,0.00017973,2]
[404083295,1769797846440,-161.46714206,0.00017973,2]
[404083296,1769797846451,-500.0,0.00017973,2]
[404083297,1769797846461,-500.0,0.00017973,2]
[404083298,1769797846472,-161.90727761,0.00017973,2]
[404083299,1769797846482,-500.0,0.00017973,2]
[404083300,1769797846493,-500.0,0.00017973,2]
[404083301,1769797846503,-500.0,0.00017973,2]
[404083302,1769797846513,-500.0,0.00017973,2]
[404083303,1769797846522,-500.0,0.00017973,2]
[404083304,1769797846533,-500.0,0.00017973,2]
[404083305,1769797846544,-500.0,0.00017973,2]
[404083306,1769797846554,-500.0,0.00017973,2]
[404083307,1769797846564,-500.0,0.00017973,2]
[404083308,1769797846573,-500.0,0.00017973,2]
[404083309,1769797846583,-150.0,0.00017973,2]
[404083310,1769797846595,-500.0,0.00017973,2]
[404083311,1769797846605,-500.0,0.00017973,2]
[404083312,1769797846615,-333.51196878,0.00017973,2]
[404083313,1769797846626,-160.13080306,0.00017973,2]
[404083314,1769797846636,-500.0,0.00017973,2]
[404083315,1769797846646,-501.03562757,0.00017973,2]
[404083316,1769797846656,-210.27851574,0.00017973,2]
[404083317,1769797846666,-340.31348241,0.00017973,2]
[404083318,1769797846676,-160.23001291,0.00017973,2]
[404083319,1769797846687,-500.0,0.00017973,2]
[404083320,1769797846697,-500.0,0.00017973,2]
[404083321,1769797846708,-175.57287607,0.00017973,2]
[404083322,1769797846718,-500.0,0.00017973,2]
[404083323,1769797846729,-500.0,0.00017973,2]
[404083324,1769797846740,-500.0,0.00017973,2]
[404083325,1769797846750,-500.0,0.00017973,2]
[404083326,1769797846759,-500.0,0.00017973,2]
[404083327,1769797846771,-500.0,0.00017973,2]
[404083328,1769797846782,-160.00319068,0.00017973,2]
[404083329,1769797846794,-432.02224032,0.00017973,2]
[404083330,1769797846806,-161.13076084,0.00017973,2]
[404083331,1769797846819,-500.0,0.00017973,2]
[404083332,1769797846830,-158.22969695,0.00017973,2]
[404083333,1769797846841,-500.0,0.00017973,2]
[404083334,1769797846851,-500.0,0.00017973,2]
[404083335,1769797846862,-500.0,0.00017973,2]
[404083336,1769797846872,-500.0,0.00017973,2]
[404083337,1769797846883,-208.33059439,0.00017973,2]
[404083338,1769797846896,-500.0,0.00017973,2]
[404083339,1769797846906,-500.0,0.00017973,2]
[404083340,1769797846917,-436.25526408,0.00017973,2]
[404083341,1769797846929,-500.0,0.00017973,2]
[404083342,1769797846939,-500.0,0.00017973,2]
[404083343,1769797846950,-392.26050896,0.00017973,2]
[404083344,1769797846961,-500.0,0.00017973,2]
[404083345,1769797846971,-208.78313746,0.00017973,2]
[404083346,1769797846982,-500.0,0.00017973,2]
[404083347,1769797846994,-500.0,0.00017973,2]
[404083348,1769797847004,-500.0,0.00017973,2]
[404083349,1769797847014,-501.19732692,0.00017973,2]
[404083350,1769797847024,-500.0,0.00017973,2]
[404083351,1769797847035,-500.0,0.00017973,2]
[404083352,1769797847044,-500.0,0.00017973,2]
[404083353,1769797847053,-509.35254647,0.00017973,2]
[404083354,1769797847063,-500.29869688,0.00017973,2]
[404083355,1769797847073,-512.27368738,0.00017973,2]
[404083356,1769797847082,-162.64188199,0.00017973,2]
[404083357,1769797847092,-500.0,0.00017973,2]
[404083358,1769797847102,-309.21369256,0.00017973,2]
[404083359,1769797847111,-500.0,0.00017973,2]
[404083360,1769797847120,-500.0,0.00017973,2]
[404083361,1769797847130,-500.0,0.00017973,2]
[404083362,1769797847140,-284.37159555,0.00017973,2]
[404083363,1769797847150,-500.0,0.00017973,2]
[404083364,1769797847160,-500.0,0.00017973,2]
[404083365,1769797847170,-160.11295309,0.00017973,2]
[404083366,1769797847180,-500.0,0.00017973,2]
[404083367,1769797847189,-500.42764262,0.00017973,2]
[404083368,1769797847199,-169.6863681,0.00017973,2]
[404083369,1769797847209,-500.0,0.00017973,2]
[404083370,1769797847218,-162.07893444,0.00017973,2]
[404083371,1769797847227,-164.73666016,0.00017973,2]
[404083372,1769797847237,-165.89161412,0.00017973,2]
[404083373,1769797847247,-1802.66,0.00017973,2]
[404083374,1769797847256,-2370.15,0.00017973,2]
[404083375,1769797847267,-1502.0,0.00017973,2]
[404083376,1769797847276,-1502.0,0.00017973,2]
[404083377,1769797847285,-1502.0,0.00017973,2]
[404083378,1769797847295,-1502.0,0.00017973,2]
[404083379,1769797847305,-1502.0,0.00017973,2]
[404083380,1769797847315,-1502.0,0.00017973,2]
[404083381,1769797847325,-1502.0,0.00017973,2]
[404083382,1769797847334,-1502.0,0.00017973,2]
[404083383,1769797847343,-1502.0,0.00017973,2]
[404083384,1769797847353,-1502.0,0.00017973,2]
[404083385,1769797847362,-1502.0,0.00017973,2]
[404083386,1769797847372,-1502.0,0.00017973,2]
[404083388,1769797847381,-1502.0,0.00017973,2]
[404083390,1769797847390,-1502.0,0.00017973,2]
[404083392,1769797847399,-1502.0,0.00017973,2]
[404083394,1769797847409,-1502.0,0.00017973,2]
[404083396,1769797847418,-1502.0,0.00017973,2]
[404083398,1769797847427,-1502.0,0.00017973,2]
[404083400,1769797847436,-1502.0,0.00017973,2]
[404083402,1769797847446,-1502.0,0.00017973,2]
[404083404,1769797847455,-1502.0,0.00017973,2]
[404083406,1769797847465,-1502.0,0.00017973,2]
[404083408,1769797847474,-1502.0,0.00017973,2]
[404083410,1769797847484,-1502.0,0.00017973,2]
[404083412,1769797847494,-1502.0,0.00017973,2]
[404083413,1769797847503,-1502.0,0.00017973,2]
[404083415,1769797847512,-1502.0,0.00017973,2]
[404083418,1769797847523,-1502.0,0.00017973,2]
[404083420,1769797847533,-1502.0,0.00017973,2]
[404083422,1769797847543,-1502.0,0.00017973,2]
[404083424,1769797847552,-1502.0,0.00017973,2]
[404083426,1769797847561,-1502.0,0.00017973,2]
[404083428,1769797847571,-1502.0,0.00017973,2]
[404083430,1769797847581,-1502.0,0.00017973,2]
[404083432,1769797847590,-1502.0,0.00017973,2]
[404083434,1769797847600,-1502.0,0.00017973,2]
[404083436,1769797847610,-1502.0,0.00017973,2]
[404083438,1769797847619,-1502.0,0.00017973,2]
[404083469,1769797847910,-1502.0,0.00017973,2]
[404083472,1769797847930,-1502.0,0.00017973,2]
[404083474,1769797847940,-500.0,0.00017973,2]
[404083476,1769797847949,-150.0,0.00017973,2]
[404083478,1769797847959,-120367.50969356,0.0001799,3]
[404083506,1769797848219,-359.398,0.0001799,3]
[404083508,1769797848232,-974.11499894,0.0001799,3]
[404083510,1769797848248,-556.49792255,0.0001799,3]
[404083513,1769797848260,-388.79344568,0.0001799,3]
[404083515,1769797848271,-821.85086495,0.0001799,3]
[404083517,1769797848287,-603.9459179,0.0001799,3]
[404083520,1769797848298,-2391.14999998,0.0001799,3]
[404083522,1769797848309,-578.368,0.0001799,3]
[404083525,1769797848591,-919.0,0.00016646,2]
[404083526,1769797848600,-7440.12,0.0001799,3]
[404083527,1769797848917,-553.93781749,0.00016679,2]
[404083528,1769797848976,-266.0,0.00016679,2]
[404083529,1769797848989,-527.06218251,0.00016679,2]
[404083530,1769797848998,-1806.0,0.00016713,2]
[404083531,1769797849008,-1093.0,0.00016746,2]
[404083532,1769797849017,-1844.0,0.00016779,2]
[404083534,1769797849026,-27633.69638449,0.0001799,3]
[404083535,1769797849037,-617.4025,0.0001799,3]
[404083536,1769797849048,-2731.455,0.0001799,3]
[404083537,1769797849062,-2955.58019675,0.0001799,3]
[404083538,1769797849072,-4538.1543205,0.0001799,3]
[404083539,1769797849083,-4451.44833514,0.0001799,3]
[404083540,1769797849094,-8312.5001,0.0001799,3]
[404083541,1769797928261,3972.462286,7.945e-05,2]
[404083545,1769798139319,-300.0,0.00013363,2]
[404083546,1769798139347,-335.86310094,0.00013363,2]
[404083555,1769798328886,-4065.11451274,0.00013263,2]
[404083556,1769798328908,-300.0,0.00013313,2]
[404083558,1769798328930,-151.0,0.00013362,2]
[404083559,1769798328952,-864.13689906,0.00013363,2]
[404083560,1769798328977,-150.0,0.00013363,2]
[404083561,1769798329000,-300.0,0.00013363,2]
[404083562,1769798329355,-1200.0,0.00013363,2]
[404083563,1769798329377,-590.9266412,0.00013363,2]
[404083564,1769798329399,-250.0,0.00013364,2]
[404083565,1769798329421,-250.0,0.00013364,2]
[404083566,1769798329442,-378.821947,0.00013364,2]
[404083595,1769798758478,-1142.65305143,0.00013198,2]
[404083596,1769798761163,-440.90782475,0.00013198,2]
[404083598,1769798764324,-1492.90782458,0.00013198,2]
[404083599,1769798766940,-241.10012185,0.00013198,2]
[404083600,1769798768595,-1661.36419886,0.00013198,2]
[404083601,1769798772341,-507.83281515,0.00013198,2]
[404083602,1769798774983,-302.11367056,0.00013198,2]
[404083603,1769798777144,-1251.80770273,0.00013198,2]
[404083604,1769798778706,-2830.0,0.00013198,2]
[404083605,1769798781204,-143.85557365,0.00013198,2]
[404083606,1769798781227,-280.77359984,0.00013198,2]
[404083607,1769798783907,-362.88705281,0.00013198,2]
[404083610,1769798786146,-1492.90782458,0.00013198,2]
[404083611,1769798789434,-550.0,0.00013198,2]
[404083613,1769798792093,-409.06984826,0.00013198,2]
[404083614,1769798798179,-288.62836425,0.00013198,2]
[404083615,1769798800290,-203.46109691,0.00013198,2]
[404083629,1769799031646,-232.34,0.00013203,2]
[404083630,1769799031657,-1200.0,0.00013257,2]
[404083631,1769799031668,-13981.42377004,0.00013258,2]
[404083632,1769799031678,-300.0,0.00013262,2]
[404083633,1769799031688,-150.0,0.00013263,2]
[404083634,1769799031698,-88709.89230649,0.00013264,2]
[404083635,1769799031709,-22342.94770951,0.00013264,2]
[404083636,1769799031722,-51607.67003144,0.00013264,2]
[404083637,1769799031806,-10704.85266722,0.00013264,2]
[404083640,1769799031818,-2365.37603366,0.00013264,2]
[404083642,1769799031829,-2677.49964977,0.00013264,2]
[404083644,1769799031841,-96856.9350184,0.00013264,2]
[404084063,1769799037809,-1605.0,0.00013264,2]
[404084064,1769799037921,-14214.000003,0.00013264,2]
[404084065,1769799037934,-1274.14311857,0.00013264,2]
[404084076,1769799039763,-1690.18119262,0.00013264,2]
[404084077,1769799039775,-372.80333372,0.00013264,2]
[404084078,1769799039787,-3561.99998,0.00013264,2]
[404084079,1769799039799,-2628.88282347,0.00013264,2]
[404084080,1769799039921,-2187.91107204,0.00013264,2]
[404084081,1769799040214,-315.041611,0.00013264,2]
[404084082,1769799040225,-335.38,0.00013264,2]
[404084083,1769799040239,-531727.59884909,0.00013264,2]
[404084084,1769799040249,-500.0,0.00013357,2]
[404084085,1769799040258,-200.0,0.00013357,2]
[404084086,1769799040267,-500.0,0.00013357,2]
[404084087,1769799040277,-500.0,0.00013357,2]
[404084088,1769799040287,-500.0,0.00013357,2]
[404084089,1769799040299,-200.0,0.00013357,2]
[404084090,1769799040310,-500.0,0.00013357,2]
[404084091,1769799040321,-154.17794606,0.00013357,2]
[404084092,1769799040331,-500.0,0.00013357,2]
[404084093,1769799040341,-500.0,0.00013357,2]
[404084094,1769799040350,-500.0,0.00013357,2]
[404084095,1769799040360,-500.0,0.00013357,2]
[404084096,1769799040371,-500.0,0.00013357,2]
[404084097,1769799040381,-500.0,0.00013357,2]
[404084098,1769799040390,-500.0,0.00013357,2]
[404084099,1769799040400,-500.0,0.00013357,2]
[404084100,1769799040409,-151.0,0.00013357,2]
[404084101,1769799040418,-500.0,0.00013357,2]
[404084102,1769799040428,-151.0,0.00013357,2]
[404084103,1769799040437,-151.0,0.00013357,2]
[404084104,1769799040446,-151.0,0.00013357,2]
[404084105,1769799040455,-151.0,0.00013357,2]
[404084106,1769799040464,-151.0,0.00013357,2]
[404084107,1769799040473,-151.0,0.00013357,2]
[404084108,1769799040485,-223.13740117,0.00013357,2]
[404084109,1769799040494,-151.0,0.00013357,2]
[404084110,1769799040503,-151.0,0.00013357,2]
[404084111,1769799040512,-151.0,0.00013357,2]
[404084112,1769799040523,-151.0,0.00013357,2]
[404084113,1769799040532,-151.0,0.00013357,2]
[404084114,1769799040543,-151.0,0.00013357,2]
[404084115,1769799040552,-151.0,0.00013357,2]
[404084116,1769799040560,-151.0,0.00013357,2]
[404084117,1769799040570,-151.0,0.00013357,2]
[404084118,1769799040579,-151.0,0.00013357,2]
[404084119,1769799040589,-151.0,0.00013357,2]
[404084120,1769799040598,-1113.33,0.00013358,2]
[404084121,1769799040608,-500.0,0.00013363,2]
[404084122,1769799040618,-500.0,0.00013363,2]
[404084123,1769799040627,-1096.77050662,0.00013363,2]
[404084124,1769799040637,-175.69975447,0.00013363,2]
[404084125,1769799040647,-1096.77050662,0.00013363,2]
[404084126,1769799040658,-500.0,0.00013363,2]
[404084127,1769799040673,-500.0,0.00013363,2]
[404084128,1769799040687,-1096.77050662,0.00013363,2]
[404084129,1769799040697,-254.10007489,0.00013363,2]
[404084130,1769799040707,-1096.77050662,0.00013363,2]
[404084131,1769799040717,-1096.77050662,0.00013363,2]
[404084132,1769799040729,-232.81654326,0.00013363,2]
[404084133,1769799040738,-1096.77050662,0.00013363,2]
[404084134,1769799040747,-500.0,0.00013363,2]
[404084135,1769799040757,-1096.77050662,0.00013363,2]
[404084136,1769799040767,-1096.77050662,0.00013363,2]
[404084137,1769799040777,-1096.77050662,0.00013363,2]
[404084138,1769799040787,-1096.77050662,0.00013363,2]
[404084139,1769799040796,-1096.77050662,0.00013363,2]
[404084140,1769799040806,-1096.77050662,0.00013363,2]
[404084141,1769799040816,-1096.77050662,0.00013363,2]
[404084142,1769799040826,-1096.77050662,0.00013363,2]
[404084143,1769799040835,-1096.77050662,0.00013363,2]
[404084144,1769799040845,-1096.77050662,0.00013363,2]
[404084145,1769799040854,-1096.77050662,0.00013363,2]
[404084146,1769799040864,-1096.77050662,0.00013363,2]
[404084147,1769799040874,-1096.77050662,0.00013363,2]
[404084148,1769799040883,-1096.77050662,0.00013363,2]
[404084149,1769799040893,-1096.77050662,0.00013363,2]
[404084150,1769799040903,-1096.77050662,0.00013363,2]
[404084151,1769799040914,-1096.77050662,0.00013363,2]
[404084152,1769799040924,-1096.77050662,0.00013363,2]
[404084153,1769799040934,-1096.77050662,0.00013363,2]
[404084154,1769799040945,-1096.77050662,0.00013363,2]
[404084155,1769799040955,-1096.77050662,0.00013363,2]
[404084156,1769799040964,-1096.77050662,0.00013363,2]
[404084157,1769799040974,-1096.77050662,0.00013363,2]
[404084158,1769799040984,-1096.77050662,0.00013363,2]
[404084159,1769799040994,-1096.77050662,0.00013363,2]
[404084160,1769799041003,-1096.77050662,0.00013363,2]
[404084161,1769799041012,-1096.77050662,0.00013363,2]
[404084162,1769799041022,-1096.77050662,0.00013363,2]
[404084163,1769799041031,-1096.77050662,0.00013363,2]
[404084164,1769799041040,-1096.77050662,0.00013363,2]
[404084165,1769799041050,-1096.77050662,0.00013363,2]
[404084166,1769799041059,-1096.77050662,0.00013363,2]
[404084167,1769799041069,-1096.77050662,0.00013363,2]
[404084168,1769799041079,-1096.77050662,0.00013363,2]
[404084169,1769799041088,-1096.77050662,0.00013363,2]
[404084170,1769799041098,-1096.77050662,0.00013363,2]
[404084171,1769799041107,-1096.77050662,0.00013363,2]
[404084172,1769799041117,-1096.77050662,0.00013363,2]
[404084173,1769799041126,-1096.77050662,0.00013363,2]
[404084174,1769799041136,-1096.77050662,0.00013363,2]
[404084175,1769799041145,-1096.77050662,0.00013363,2]
[404084176,1769799041154,-1096.77050662,0.00013363,2]
[404084177,1769799041165,-1096.77050662,0.00013363,2]
[404084178,1769799041178,-1096.77050662,0.00013363,2]
[404084179,1769799041187,-1096.77050662,0.00013363,2]
[404084180,1769799041196,-1096.77050662,0.00013363,2]
[404084181,1769799041205,-1096.77050662,0.00013363,2]
[404084182,1769799041216,-1096.77050662,0.00013363,2]
[404084183,1769799041226,-1096.77050662,0.00013363,2]
[404084184,1769799041236,-1096.77050662,0.00013363,2]
[404084185,1769799041247,-1096.77050662,0.00013363,2]
[404084186,1769799041257,-1218.63389625,0.00013363,2]
[404084187,1769799041266,-1218.63389625,0.00013363,2]
[404084188,1769799041275,-1218.63389625,0.00013363,2]
[404084189,1769799041285,-1218.63389625,0.00013363,2]
[404084190,1769799041294,-1218.63389625,0.00013363,2]
[404084191,1769799041304,-1218.63389625,0.00013363,2]
[404084192,1769799041315,-1218.63389625,0.00013363,2]
[404084193,1769799041325,-1218.63389625,0.00013363,2]
[404084194,1769799041336,-1218.63389625,0.00013363,2]
[404084195,1769799041345,-1218.63389625,0.00013363,2]
[404084196,1769799041354,-1218.63389625,0.00013363,2]
[404084197,1769799041364,-1218.63389625,0.00013363,2]
[404084198,1769799041374,-1218.63389625,0.00013363,2]
[404084199,1769799041384,-1218.63389625,0.00013363,2]
[404084200,1769799041394,-1218.63389625,0.00013363,2]
[404084201,1769799041403,-1218.63389625,0.00013363,2]
[404084202,1769799041412,-1218.63389625,0.00013363,2]
[404084203,1769799041421,-1218.63389625,0.00013363,2]
[404084204,1769799041431,-1218.63389625,0.00013363,2]
[404084205,1769799041440,-1218.63389625,0.00013363,2]
[404084206,1769799041450,-1218.63389625,0.00013363,2]
[404084207,1769799041459,-1218.63389625,0.00013363,2]
[404084208,1769799041469,-1218.63389625,0.00013363,2]
[404084209,1769799041478,-1218.63389625,0.00013363,2]
[404084210,1769799041488,-1218.63389625,0.00013363,2]
[404084211,1769799041497,-1218.63389625,0.00013363,2]
[404084212,1769799041506,-1218.63389625,0.00013363,2]
[404084213,1769799041515,-1218.63389625,0.00013363,2]
[404084214,1769799041525,-1218.63389625,0.00013363,2]
[404084215,1769799041537,-1218.63389625,0.00013363,2]
[404084216,1769799041547,-1218.63389625,0.00013363,2]
[404084217,1769799041556,-500.0,0.00013364,2]
[404084218,1769799041567,-500.0,0.00013364,2]
[404084219,1769799041577,-4268.5,0.00013364,2]
[404084220,1769799041586,-9999.99,0.00013364,2]
[404084221,1769799041595,-427.38,0.00013364,2]
[404084222,1769799041605,-499.99,0.00013364,2]
[404084223,1769799041615,-299.99,0.00013364,2]
[404084224,1769799041624,-1182.12,0.00013364,2]
[404084225,1769799041635,-150.99,0.00013364,2]
[404084226,1769799041645,-9999.99,0.00013364,2]
[404084227,1769799041654,-1222.04,0.00013364,2]
[404084228,1769799041664,-150.99,0.00013364,2]
[404084229,1769799041673,-13826.21,0.00013364,2]
[404084230,1769799041683,-2920.91,0.00013364,2]
[404084231,1769799041692,-60499.18,0.00013364,2]
[404084232,1769799041702,-9999.99,0.00013364,2]
[404084233,1769799041712,-4791.71,0.00013364,2]
[404084234,1769799041722,-3240.0,0.00013425,2]
[404084235,1769799041733,-999.99,0.00013425,2]
[404084236,1769799041742,-206.89,0.0001345,2]
[404084237,1769799041752,-200.0,0.00013505,2]
[404084238,1769799041762,-5365.26,0.00013521,2]
[404084239,1769799041772,-1500.0,0.00013526,2]
[404084240,1769799041781,-1113.33,0.00013632,2]
[404084241,1769799041792,-7695.82,0.00013644,2]
[404084242,1769799041802,-150.0,0.00013669,2]
[404084243,1769799041812,-3299.04,0.00013696,2]
[404084244,1769799041822,-502.05200047,0.00013698,2]
[404084245,1769799041831,-500.0,0.00013698,2]
[404084246,1769799041840,-500.0,0.00013698,2]
[404084247,1769799041850,-500.0,0.00013698,2]
[404084248,1769799041859,-500.0,0.00013698,2]
[404084249,1769799041868,-500.0,0.00013698,2]
[404084250,1769799041879,-500.0,0.00013698,2]
[404084251,1769799041889,-500.0,0.00013698,2]
[404084252,1769799041899,-500.0,0.00013698,2]
[404084253,1769799041908,-523.46,0.00013698,2]
[404084254,1769799041917,-523.46,0.00013698,2]
[404084255,1769799041926,-523.46,0.00013698,2]
[404084256,1769799041936,-523.46,0.00013698,2]
[404084257,1769799041945,-500.0,0.00013698,2]
[404084258,1769799041955,-500.0,0.00013698,2]
[404084259,1769799041964,-502.28343568,0.00013698,2]
[404084260,1769799041973,-500.0,0.00013698,2]
[404084261,1769799041984,-500.0,0.00013698,2]
[404084262,1769799041994,-500.0,0.00013698,2]
[404084263,1769799042004,-233.22890067,0.00013698,2]
[404084264,1769799042014,-500.0,0.00013698,2]
[404084265,1769799042023,-500.0,0.00013698,2]
[404084266,1769799042033,-500.0,0.00013698,2]
[404084267,1769799042044,-500.0,0.00013698,2]
[404084268,1769799042055,-500.0,0.00013698,2]
[404084269,1769799042066,-500.0,0.00013698,2]
[404084270,1769799042076,-500.0,0.00013698,2]
[404084271,1769799042086,-500.0,0.00013698,2]
[404084272,1769799042096,-500.0,0.00013698,2]
[404084273,1769799042105,-326.5559361,0.00013698,2]
[404084274,1769799042115,-500.0,0.00013698,2]
[404084275,1769799042124,-500.0,0.00013699,2]
[404084276,1769799042133,-331.45103431,0.00013699,2]
[404084277,1769799042143,-500.0,0.00013699,2]
[404084278,1769799042152,-500.0,0.00013699,2]
[404084279,1769799042163,-500.0,0.00013699,2]
[404084280,1769799042175,-500.0,0.00013699,2]
[404084281,1769799042184,-500.0,0.00013699,2]
[404084282,1769799042194,-500.0,0.00013699,2]
[404084283,1769799042203,-500.0,0.00013699,2]
[404084284,1769799042212,-10014.54278349,0.0001372,2]
[404084285,1769799042223,-1456.24,0.00013724,2]
[404084286,1769799042233,-150.0,0.00013742,2]
[404084287,1769799042243,-13981.42376998,0.00013774,2]
[404084288,1769799042254,-537.0,0.00013834,2]
[404084289,1769799042263,-935.0,0.00013861,2]
[404084290,1769799042273,-406.0,0.00013889,2]
[404084291,1769799042282,-1113.33,0.00013905,2]
[404084292,1769799042292,-500.0,0.00013905,2]
[404084293,1769799042301,-200.0,0.00013905,2]
[404084294,1769799042310,-200.0,0.00013905,2]
[404084295,1769799042319,-739.0,0.00013916,2]
[404084296,1769799042329,-4513.570846,0.00013934,2]
[404084297,1769799042339,-232.34,0.00013936,2]
[404084298,1769799042348,-294.0,0.00013944,2]
[404084299,1769799042359,-774.0,0.00013972,2]
[404084300,1769799042368,-1991.0,0.00013999,2]
[404084301,1769799042377,-297.0,0.00014027,2]
[404084302,1769799042387,-150.0,0.00014031,2]
[404084303,1769799042397,-446.0,0.00014055,2]
[404084304,1769799042407,-240.0,0.00014082,2]
[404084305,1769799042416,-1009.56,0.00014094,2]
[404084306,1769799042427,-239.86,0.00014094,2]
[404084307,1769799042436,-1980.0,0.0001411,2]
[404084308,1769799042446,-1799.0,0.00014137,2]
[404084310,1769799042456,-919.0,0.00014165,2]
[404084312,1769799042466,-1113.33,0.00014179,2]
[404084313,1769799042475,-687.0,0.00014193,2]
[404084314,1769799042486,-1896.0,0.0001422,2]
[404084315,1769799042498,-627.64708776,0.00014226,2]
[404084316,1769799042508,-10014.54278349,0.00014243,2]
[404084317,1769799042518,-462.92596085,0.0001428,2]
[404084318,1769799042527,-13981.42376998,0.0001429,2]
[404084319,1769799042541,-1000.0,0.00014326,2]
[404084320,1769799042557,-255.0,0.00014377,2]
[404084321,1769799042568,-166.66,0.00014383,2]
[404084322,1769799042577,-1456.24,0.0001441,2]
[404084323,1769799042587,-256.0,0.00014412,2]
[404084324,1769799042596,-826.78002404,0.00014423,2]
[404084325,1769799042612,-1113.33,0.00014453,2]
[404084326,1769799042622,-500.0,0.00014453,2]
[404084327,1769799042631,-300.52698648,0.00014453,2]
[404084328,1769799042642,-491.88,0.00014493,2]
[404084329,1769799042651,-195.0,0.00014518,2]
[404084330,1769799042661,-195.0,0.00014518,2]
[404084331,1769799042671,-600.0,0.00014518,2]
[404084332,1769799042680,-250.0,0.00014518,2]
[404084333,1769799042690,-250.0,0.00014523,2]
[404084334,1769799042700,-195.0,0.00014523,2]
[404084335,1769799042711,-600.0,0.00014523,2]
[404084336,1769799042721,-600.0,0.00014523,2]
[404084337,1769799042731,-250.0,0.00014523,2]
[404084338,1769799042740,-195.0,0.00014523,2]
[404084339,1769799042751,-600.0,0.00014523,2]
[404084340,1769799042760,-600.0,0.00014523,2]
[404084341,1769799042770,-420.0,0.0001454,2]
[404084343,1769799042779,-1680.0,0.00014583,2]
[404084345,1769799042788,-232.34,0.0001467,2]
[404084347,1769799042798,-364.9,0.0001467,2]
[404084349,1769799042808,-166.66,0.00014686,2]
[404084351,1769799042825,-1113.33,0.00014727,2]
[404084352,1769799042842,-10014.54278349,0.00014765,2]
[404084354,1769799042853,-183.75,0.00014788,2]
[404084356,1769799042863,-13981.42376998,0.00014805,2]
[404084358,1769799042873,-179.38932908,0.000149,2]
[404084360,1769799042882,-166.66,0.00014989,2]
[404084361,1769799042892,-1113.33,0.00015001,2]
[404084363,1769799042901,-507.10580581,0.00015001,2]
[404084365,1769799042910,-826.78002401,0.00015003,2]
[404084367,1769799042920,-1456.24,0.00015097,2]
[404084368,1769799042929,-627.64708773,0.00015145,2]
[404084369,1769799042938,-1113.33,0.00015275,2]
[404084370,1769799042948,-10014.54278349,0.00015288,2]
[404084371,1769799042957,-166.66,0.00015292,2]
[404084372,1769799042966,-13981.42376998,0.00015321,2]
[404084373,1769799042975,-232.34,0.00015403,2]
[404084374,1769799042986,-500.0,0.00015514,2]
[404084375,1769799042995,-500.0,0.00015514,2]
[404084376,1769799043005,-523.46,0.00015514,2]
[404084377,1769799043014,-500.0,0.00015514,2]
[404084378,1769799043024,-1113.33,0.00015549,2]
[404084379,1769799043033,-826.78002401,0.00015582,2]
[404084380,1769799043042,-433.0,0.00015584,2]
[404084381,1769799043051,-166.66,0.00015595,2]
[404084382,1769799043060,-500.0,0.00015718,2]
[404084383,1769799043070,-500.0,0.00015718,2]
[404084384,1769799043079,-651.63,0.00015718,2]
[404084385,1769799043088,-370.45918944,0.00015718,2]
[404084386,1769799043098,-500.0,0.00015718,2]
[404084387,1769799043107,-500.0,0.00015718,2]
[404084388,1769799043116,-271.3035718,0.00015718,2]
[404084389,1769799043125,-500.0,0.00015718,2]